[Event "106th British-ch Major 2019"]
[Site "Torquay"]
[Date "2019.07.28"]
[Round "2.29"]
[White "Hosdurga, Chirag"]
[Black "Sanitt, Ethan"]
[Result "1-0"]
[ECO "E32"]
[WhiteElo "1926"]
[BlackElo "1752"]
[Annotator "NA"]
[PlyCount "61"]
[EventDate "2019.07.27"]
[EventType "swiss"]
[EventCountry "GBR"]
[SourceTitle "playchess.com"]
[Source "ChessBase"]
[SourceQuality "1"]
[TimeControl "40/5400+30:1800+30"]

1. d4 {[%emt 0:00:00]} Nf6 {[%emt 0:00:00]} 2. c4 {[%emt 0:00:00]} e6 {[%emt 0:00:00]} 3. Nc3 {[%emt 0:00:00]} Bb4 {[%emt 0:00:00]} 4. Qc2 {[%emt 0:00:21]} O-O {[%emt 0:00:14]} 5. e4 {[%emt 0:00:51]} d5 {[%emt 0:02:03]} 6. e5 {[%emt 0:00:06]} Ne4 {[%emt 0:17:16]} 7. Bd3 {[%emt 0:00:09]} f5 {[%emt 0:01:25]} 8. exf6 {[%emt 0:04:37]} Nxf6 {[%emt 0:07:45]} 9. Nf3 {[%emt 0:05:26]} Nc6 {[%emt 0:01:33]} 10. c5 {[%emt 0:16:25]} Qe7 {[%emt 0:14:33]} 11. O-O {[%emt 0:04:07]} Bxc3 {[%emt 0:04:53]} 12. Qxc3 {[%emt 0:02:26]} Bd7 {[%emt 0:08:56]} 13. Bg5 {[%emt 0:02:42]} Qf7 {[%emt 0:07:13]} 14. Rae1 {[%emt 0:04:37]} b6 {[%emt 0:10:50]} 15. b4 {[%emt 0:04:20]} bxc5 {[%emt 0:00:34]} 16. bxc5 {[%emt 0:07:47]} Rab8 {[%emt 0:01:19]} 17. Bb1 {[%emt 0:08:59]} Nh5 {[%emt 0:02:28]} 18. Bd2 {[%emt 0:11:27]} g6 {[%emt 0:02:20]} 19. Bh6 {[%emt 0:02:32]} Rfe8 {[%emt 0:00:50]} 20. Ne5 {[%emt 0:04:21]} Nxe5 {[%emt 0:00:44]} 21. Rxe5 {[%emt 0:00:15]} Ng7 {[%emt 0:04:12]} 22. c6 {[%emt 0:00:57]} Bc8 {[%emt 0:00:48]} 23. Rfe1 {[%emt 0:03:25]} Rb6 {[%emt 0:02:16]} 24. h4 {[%emt 0:01:19]} Ba6 {[%emt 0:02:47]} 25. Qg3 {[%emt 0:05:17]} Kh8 {[%emt 0:02:17]} 26. Rg5 {[%emt 0:07:01]} Rxc6 {[%emt 0:02:22]} 27. h5 {[%emt 0:01:23]} Nxh5 {[%emt 0:01:39]} 28. Rxh5 {[%emt 0:00:33]} gxh5 {[%emt 0:01:20]} 29. Qe5+ {[%emt 0:00:03]} Kg8 {[%emt 0:00:02]} 30. Re3 {[%emt 0:01:10]} Rc1+ {[%emt 0:01:21]} 31. Kh2 {[%emt 0:00:04]} 1-0

[Event "106th British-ch Major 2019"]
[Site "Torquay"]
[Date "2019.07.28"]
[Round "2.30"]
[White "Ingham, H William"]
[Black "Gardiner, Eric D"]
[Result "1/2-1/2"]
[ECO "D05"]
[WhiteElo "1854"]
[BlackElo "1957"]
[Annotator "NA RC"]
[PlyCount "142"]
[EventDate "2019.07.27"]
[EventType "swiss"]
[EventCountry "GBR"]
[SourceTitle "playchess.com"]
[Source "ChessBase"]
[SourceQuality "1"]
[TimeControl "40/5400+30:1800+30"]

1. d4 {[%emt 0:00:00]} d5 {[%emt 0:00:00]} 2. Nf3 {[%emt 0:00:33]} Nf6 {[%emt 0:00:00]} 3. e3 {[%emt 0:00:10]} e6 {[%emt 0:00:00]} 4. Bd3 {[%emt 0:00:08]} c5 {[%emt 0:00:00]} 5. c3 {[%emt 0:00:17]} Be7 {[%emt 0:00:07]} 6. Nbd2 {[%emt 0:00:09]} O-O {[%emt 0:00:16]} 7. O-O {[%emt 0:00:13]} b6 {[%emt 0:00:11]} 8. dxc5 {[%emt 0:01:29]} Bxc5 {[%emt 0:00:59]} 9. e4 {[%emt 0:00:09]} Ba6 {[%emt 0:00:34]} 10. Bxa6 {[%emt 0:03:28]} Nxa6 {[%emt 0:00:06]} 11. e5 {[%emt 0:02:02]} Nd7 {[%emt 0:00:20]} 12. Qe2 {[%emt 0:01:32]} Nab8 {[%emt 0:01:12]} 13. Nb3 {[%emt 0:00:13]} Nc6 {[%emt 0:00:45]} 14. Nbd4 {[%emt 0:02:31]} Bxd4 {[%emt 0:03:00]} 15. cxd4 {[%emt 0:00:18]} Rc8 {[%emt 0:08:14]} 16. Bg5 {[%emt 0:00:40]} Qc7 {[%emt 0:00:46]} 17. Rac1 {[%emt 0:00:12]} Qb7 {[%emt 0:00:36]} 18. Rc3 {[%emt 0:03:44]} Na5 {[%emt 0:09:25]} 19. Rfc1 {[%emt 0:01:40]} Rxc3 {[%emt 0:01:31]} 20. Rxc3 {[%emt 0:00:10]} Rc8 {[%emt 0:01:09]} 21. Qc2 {[%emt 0:02:07]} Rxc3 {[%emt 0:04:24]} 22. Qxc3 {[%emt 0:00:52]} Qc6 {[%emt 0:01:04]} 23. Qxc6 {[%emt 0:01:15]} Nxc6 {[%emt 0:00:05]} 24. Bd2 {[%emt 0:00:08]} h6 {[%emt 0:11:28]} 25. Bc3 {[%emt 0:02:17]} Kh7 {[%emt 0:02:09]} 26. Kf1 {[%emt 0:00:14]} Kg6 {[%emt 0:03:39]} 27. Ke2 {[%emt 0:00:24]} Kf5 {[%emt 0:03:13]} 28. h3 {[%emt 0:05:45]} g5 {[%emt 0:03:36]} 29. Ke3 {[%emt 0:02:23]} Ndb8 {[%emt 0:14:44]} 30. g4+ {[%emt 0:00:29]} Kg6 {[%emt 0:00:05]} 31. Ne1 {[%emt 0:04:15]} Nd7 {[%emt 0:10:45]} 32. Nd3 {[%emt 0:06:42]} f6 {[%emt 0:02:10]} 33. exf6 {[%emt 0:01:47]} Kxf6 {[%emt 0:00:37]} 34. a3 {[%emt 0:02:46]} a5 {[%emt 0:07:09]} 35. b3 {[%emt 0:03:33]} Na7 {[%emt 0:00:38]} 36. a4 {[%emt 0:02:00]} Nc8 {[%emt 0:01:11]} 37. b4 {[%emt 0:00:43]} Nd6 {[%emt 0:01:22]} 38. Nb2 {[%emt 0:01:22]} axb4 {[%emt 0:04:57]} 39. Bxb4 {[%emt 0:02:30]} Nb7 {[%emt 0:02:38]} 40. Nd3 {[%emt 0:00:00]} Na5 {[%emt 0:01:21]} 41. Bxa5 {[%emt 0:32:23]} bxa5 {[%emt 0:30:06]} 42. Kd2 {[%emt 0:03:38]} e5 {[%emt 0:00:00]} 43. Ke3 {[%emt 0:00:00]} e4 {[%emt 0:00:00]} 44. Nb2 {[%emt 0:00:00]} Ke6 {[%emt 0:00:00]} 45. f3 {[%emt 0:00:00]} exf3 {[%emt 0:00:00]} 46. Kxf3 {[%emt 0:00:00]} Nb6 {[%emt 0:00:00]} 47. Nd3 {[%emt 0:00:00]} Nxa4 {[%emt 0:00:00]} 48. Ke3 {[%emt 0:00:00]} Nb6 {[%emt 0:00:00]} 49. Nc5+ {[%emt 0:00:00]} Kf6 {[%emt 0:00:00]} 50. Kd3 {[%emt 0:00:00]} a4 {[%emt 0:00:00]} 51. Na6 {[%emt 0:00:00]} a3 {[%emt 0:00:00]} 52. Nb4 {[%emt 0:00:00]} Ke6 {[%emt 0:00:00]} 53. Na2 {[%emt 0:00:00]} Nc4 {[%emt 0:00:00]} 54. Nb4 {[%emt 0:00:00]} Kd6 {[%emt 0:00:00]} 55. Na2 {[%emt 0:00:00]} Na5 {[%emt 0:00:00]} 56. Kc3 {[%emt 0:00:00]} Nc6 {[%emt 0:00:05]} 57. Nc1 {[%emt 0:00:00]} Ne7 {[%emt 0:00:15]} 58. Kb3 {[%emt 0:00:00]} Ng6 {[%emt 0:00:13]} 59. Ne2 {[%emt 0:00:00]} Nf4 {[%emt 0:00:32]} 60. Ng3 {[%emt 0:00:00]} Nxh3 {[%emt 0:00:35]} 61. Nf5+ {[%emt 0:00:00]} Ke6 {[%emt 0:02:11]} 62. Nxh6 {[%emt 0:00:00]} Nf2 {[%emt 0:00:55]} 63. Kxa3 {[%emt 0:00:00]} Kf6 {[%emt 0:00:37]} 64. Kb3 {[%emt 0:00:00]} Kg6 {[%emt 0:00:51]} 65. Nf5 {[%emt 0:00:00]} Nxg4 {[%emt 0:00:11]} 66. Ne7+ {[%emt 0:00:00]} Kf7 {[%emt 0:00:29]} 67. Nxd5 {[%emt 0:00:00]} Nf6 {[%emt 0:00:33]} 68. Kc4 {[%emt 0:00:00]} g4 {[%emt 0:01:26]} 69. Nf4 {[%emt 0:00:00]} g3 {[%emt 0:00:23]} 70. Kd3 {[%emt 0:00:00]} Nd5 {[%emt 0:01:21]} 71. Ng2 {[%emt 0:00:00]} Ke6 {[%emt 0:00:53]} 1/2-1/2

[Event "106th British-ch Major 2019"]
[Site "Torquay"]
[Date "2019.07.28"]
[Round "2.31"]
[White "May, Paul"]
[Black "Cowan, Richard M"]
[Result "1-0"]
[ECO "E20"]
[WhiteElo "1832"]
[BlackElo "1931"]
[Annotator "NA"]
[PlyCount "91"]
[EventDate "2019.07.27"]
[EventType "swiss"]
[EventCountry "GBR"]
[SourceTitle "playchess.com"]
[Source "ChessBase"]
[SourceQuality "1"]
[TimeControl "40/5400+30:1800+30"]

1. d4 {[%emt 0:00:00]} Nf6 {[%emt 0:02:20]} 2. c4 {[%emt 0:00:00]} e6 {[%emt 0:00:28]} 3. Nc3 {[%emt 0:00:04]} Bb4 {[%emt 0:01:09]} 4. f3 {[%emt 0:01:04]} c5 {[%emt 0:11:59]} 5. d5 {[%emt 0:06:33]} d6 {[%emt 0:00:11]} 6. e4 {[%emt 0:00:56]} O-O {[%emt 0:00:53]} 7. Nge2 {[%emt 0:02:57]} a6 {[%emt 0:02:28]} 8. a3 {[%emt 0:01:26]} Ba5 {[%emt 0:05:03]} 9. Bd2 {[%emt 0:05:20]} b5 {[%emt 0:05:24]} 10. Ng3 {[%emt 0:05:42]} Re8 {[%emt 0:04:55]} 11. Be2 {[%emt 0:08:53]} b4 {[%emt 0:10:24]} 12. Na2 {[%emt 0:05:32]} exd5 {[%emt 0:01:02]} 13. exd5 {[%emt 0:03:23]} bxa3 {[%emt 0:05:22]} 14. bxa3 {[%emt 0:00:57]} Nbd7 {[%emt 0:00:32]} 15. O-O {[%emt 0:01:35]} Rb8 {[%emt 0:03:05]} 16. Qc2 {[%emt 0:09:21]} Bxd2 {[%emt 0:02:58]} 17. Qxd2 {[%emt 0:00:15]} h5 {[%emt 0:06:24]} 18. Nc3 {[%emt 0:13:19]} Nf8 {[%emt 0:13:18]} 19. Bd3 {[%emt 0:03:04]} Rb3 {[%emt 0:03:56]} 20. Bc2 {[%emt 0:01:51]} Rb2 {[%emt 0:00:26]} 21. Bh7+ {[%emt 0:00:23]} N8xh7 {[%emt 0:00:13]} 22. Qxb2 {[%emt 0:00:10]} h4 {[%emt 0:00:34]} 23. Nge4 {[%emt 0:01:09]} Nh5 {[%emt 0:00:14]} 24. Qb8 {[%emt 0:08:15]} Nf4 {[%emt 0:12:02]} 25. Qxd6 {[%emt 0:03:10]} g5 {[%emt 0:03:58]} 26. Qxd8 {[%emt 0:01:04]} Rxd8 {[%emt 0:00:05]} 27. Nxc5 {[%emt 0:01:10]} f5 {[%emt 0:00:27]} 28. Rab1 {[%emt 0:02:08]} Nf8 {[%emt 0:01:24]} 29. Rb8 {[%emt 0:00:41]} Kf7 {[%emt 0:00:04]} 30. Nb7 {[%emt 0:01:13]} Rd7 {[%emt 0:00:33]} 31. Rxc8 {[%emt 0:01:25]} Rxb7 {[%emt 0:00:06]} 32. Re1 {[%emt 0:06:21]} Rb3 {[%emt 0:02:12]} 33. Rc7+ {[%emt 0:00:32]} Kg8 {[%emt 0:00:30]} 34. Nd1 {[%emt 0:02:57]} Nd3 {[%emt 0:00:45]} 35. Rf1 {[%emt 0:00:37]} Rxa3 {[%emt 0:00:26]} 36. d6 {[%emt 0:01:01]} Ne5 {[%emt 0:00:27]} 37. Re1 {[%emt 0:00:32]} Nd3 {[%emt 0:01:27]} 38. Rf1 {[%emt 0:01:23]} Ne5 {[%emt 0:00:04]} 39. c5 {[%emt 0:00:44]} Rd3 {[%emt 0:00:11]} 40. Nb2 {[%emt 0:00:37]} Rd2 {[%emt 0:00:09]} 41. Na4 {[%emt 0:30:45]} Ne6 {[%emt 0:30:27]} 42. Re7 {[%emt 0:00:00]} h3 {[%emt 0:00:00]} 43. gxh3 {[%emt 0:00:00]} Nf4 {[%emt 0:00:00]} 44. Rxe5 {[%emt 0:00:00]} Nxh3+ {[%emt 0:00:00]} 45. Kh1 {[%emt 0:00:00]} f4 {[%emt 0:00:00]} 46. Nb6 {[%emt 0:00:00]} 1-0

[Event "106th British-ch Major 2019"]
[Site "Torquay"]
[Date "2019.07.28"]
[Round "2.32"]
[White "Ifalore, Michael"]
[Black "Rathbone-Jones, Ifan"]
[Result "0-1"]
[ECO "D77"]
[WhiteElo "1907"]
[BlackElo "1855"]
[Annotator "NA"]
[PlyCount "94"]
[EventDate "2019.07.27"]
[EventType "swiss"]
[EventCountry "GBR"]
[SourceTitle "playchess.com"]
[Source "ChessBase"]
[SourceQuality "1"]
[TimeControl "40/5400+30:1800+30"]

1. d4 {[%emt 0:46:06]} d5 {[%emt 0:00:16]} 2. c4 {[%emt 0:00:03]} e6 {[%emt 0:00:06]} 3. Nf3 {[%emt 0:00:03]} Nf6 {[%emt 0:00:12]} 4. g3 {[%emt 0:00:03]} g6 {[%emt 0:00:10]} 5. Bg2 {[%emt 0:00:10]} Bg7 {[%emt 0:00:07]} 6. O-O {[%emt 0:00:09]} O-O {[%emt 0:00:07]} 7. b3 {[%emt 0:00:29]} b6 {[%emt 0:01:55]} 8. Bb2 {[%emt 0:00:15]} Bb7 {[%emt 0:00:07]} 9. Qc2 {[%emt 0:00:07]} Nh5 {[%emt 0:08:31]} 10. Nbd2 {[%emt 0:10:21]} f5 {[%emt 0:00:34]} 11. Ne5 {[%emt 0:00:11]} Nd7 {[%emt 0:02:20]} 12. Ndf3 {[%emt 0:04:03]} Nhf6 {[%emt 0:00:43]} 13. cxd5 {[%emt 0:01:42]} Nxe5 {[%emt 0:06:38]} 14. dxe5 {[%emt 0:03:59]} Nxd5 {[%emt 0:00:06]} 15. Rfd1 {[%emt 0:01:30]} Qe7 {[%emt 0:04:26]} 16. Rac1 {[%emt 0:03:32]} Rac8 {[%emt 0:00:39]} 17. Qc4 {[%emt 0:00:54]} h6 {[%emt 0:06:54]} 18. Nd4 {[%emt 0:10:48]} c6 {[%emt 0:04:01]} 19. e4 {[%emt 0:05:16]} fxe4 {[%emt 0:13:41]} 20. Bh3 {[%emt 0:00:21]} Rf5 {[%emt 0:00:06]} 21. Nxf5 {[%emt 0:03:21]} gxf5 {[%emt 0:03:52]} 22. Qa4 {[%emt 0:01:10]} Kf7 {[%emt 0:02:24]} 23. Bf1 {[%emt 0:03:56]} a6 {[%emt 0:05:34]} 24. Qd4 {[%emt 0:01:37]} Kg6 {[%emt 0:05:17]} 25. Bc4 {[%emt 0:00:42]} c5 {[%emt 0:00:07]} 26. Qd2 {[%emt 0:00:05]} h5 {[%emt 0:01:19]} 27. Rb1 {[%emt 0:04:52]} Bh6 {[%emt 0:01:20]} 28. Qe1 {[%emt 0:01:56]} Rg8 {[%emt 0:07:00]} 29. Qf1 {[%emt 0:00:37]} b5 {[%emt 0:02:33]} 30. Be2 {[%emt 0:00:13]} e3 {[%emt 0:01:50]} 31. Qh3 {[%emt 0:02:07]} exf2+ {[%emt 0:00:01]} 32. Kxf2 {[%emt 0:00:08]} Be3+ {[%emt 0:00:37]} 33. Ke1 {[%emt 0:00:07]} Rh8 {[%emt 0:00:38]} 34. Bf3 {[%emt 0:01:41]} c4 {[%emt 0:02:24]} 35. Ke2 {[%emt 0:01:32]} Qc5 {[%emt 0:01:31]} 36. b4 {[%emt 0:02:47]} Qb6 {[%emt 0:02:40]} 37. Bxd5 {[%emt 0:00:03]} Bxd5 {[%emt 0:00:26]} 38. g4 {[%emt 0:00:06]} f4 {[%emt 0:02:17]} 39. Rxd5 {[%emt 0:00:54]} exd5 {[%emt 0:01:01]} 40. e6 {[%emt 0:00:05]} d4 {[%emt 0:01:09]} 41. e7 {[%emt 0:00:26]} Qc6 {[%emt 0:02:23]} 42. Rf1 {[%emt 0:04:30]} hxg4 {[%emt 0:00:43]} 43. Qxg4+ {[%emt 0:00:12]} Kf7 {[%emt 0:01:15]} 44. Bxd4 {[%emt 0:01:34]} Bxd4 {[%emt 0:05:57]} 45. Qxf4+ {[%emt 0:01:41]} Bf6 {[%emt 0:01:18]} 46. Qe5 {[%emt 0:00:09]} Qg2+ {[%emt 0:00:12]} 47. Ke1 {[%emt 0:00:06]} Qxf1+ {[%emt 0:00:05]} 0-1

[Event "106th British-ch Major 2019"]
[Site "Torquay"]
[Date "2019.07.28"]
[Round "2.33"]
[White "Nayak, Raghav"]
[Black "Kirupakaran, Vishnu"]
[Result "1-0"]
[ECO "B23"]
[WhiteElo "1906"]
[BlackElo "1771"]
[Annotator "NA"]
[PlyCount "49"]
[EventDate "2019.07.27"]
[EventType "swiss"]
[EventCountry "GBR"]
[SourceTitle "playchess.com"]
[Source "ChessBase"]
[SourceQuality "1"]
[TimeControl "40/5400+30:1800+30"]

1. e4 {[%emt 0:00:00]} c5 {[%emt 0:01:36]} 2. Nc3 {[%emt 0:01:11]} d6 {[%emt 0:00:19]} 3. f4 {[%emt 0:00:07]} Nc6 {[%emt 0:00:10]} 4. Bc4 {[%emt 0:00:54]} g6 {[%emt 0:00:08]} 5. Nf3 {[%emt 0:00:09]} Bg7 {[%emt 0:00:05]} 6. O-O {[%emt 0:00:15]} e6 {[%emt 0:00:09]} 7. Qe1 {[%emt 0:00:33]} Nge7 {[%emt 0:00:06]} 8. d3 {[%emt 0:00:05]} O-O {[%emt 0:00:08]} 9. f5 {[%emt 0:00:10]} gxf5 {[%emt 0:06:29]} 10. Qh4 {[%emt 0:05:08]} fxe4 {[%emt 0:03:14]} 11. Ng5 {[%emt 0:18:18]} h6 {[%emt 0:01:32]} 12. Ncxe4 {[%emt 0:00:21]} Nf5 {[%emt 0:35:33]} 13. Qh5 {[%emt 0:12:24]} d5 {[%emt 0:14:11]} 14. g4 {[%emt 0:12:23]} dxe4 {[%emt 0:17:38]} 15. gxf5 {[%emt 0:00:47]} Qd4+ {[%emt 0:02:34]} 16. Kh1 {[%emt 0:00:48]} hxg5 {[%emt 0:03:00]} 17. Bxg5 {[%emt 0:00:36]} exd3 {[%emt 0:10:21]} 18. Rf4 {[%emt 0:04:14]} Qe5 {[%emt 0:01:14]} 19. f6 {[%emt 0:30:12]} Bxf6 {[%emt 0:00:16]} 20. Rg1 {[%emt 0:00:17]} Bg7 {[%emt 0:00:41]} 21. Bf6 {[%emt 0:00:42]} Qxh5 {[%emt 0:00:32]} 22. Rxg7+ {[%emt 0:00:10]} Kh8 {[%emt 0:00:08]} 23. Rg5+ {[%emt 0:00:03]} Kh7 {[%emt 0:00:26]} 24. Rxh5+ {[%emt 0:00:04]} Kg6 {[%emt 0:00:15]} 25. Rg5+ {[%emt 0:00:03]} 1-0

[Event "106th British-ch Major 2019"]
[Site "Torquay"]
[Date "2019.07.28"]
[Round "2.34"]
[White "Howell, Oliver W"]
[Black "Ruane, Brendan J"]
[Result "1/2-1/2"]
[ECO "A84"]
[WhiteElo "1797"]
[BlackElo "1904"]
[Annotator "NA"]
[PlyCount "82"]
[EventDate "2019.07.27"]
[EventType "swiss"]
[EventCountry "GBR"]
[SourceTitle "playchess.com"]
[Source "ChessBase"]
[SourceQuality "1"]
[TimeControl "40/5400+30:1800+30"]

1. Nf3 {[%emt 0:00:00]} b6 {[%emt 0:00:00]} 2. c4 {[%emt 0:00:08]} Bb7 {[%emt 0:00:23]} 3. Nc3 {[%emt 0:00:10]} e6 {[%emt 0:00:36]} 4. g3 {[%emt 0:01:38]} f5 {[%emt 0:03:42]} 5. Bg2 {[%emt 0:00:48]} Nf6 {[%emt 0:00:08]} 6. O-O {[%emt 0:01:16]} Be7 {[%emt 0:02:15]} 7. d4 {[%emt 0:01:15]} O-O {[%emt 0:00:46]} 8. b3 {[%emt 0:00:46]} a5 {[%emt 0:03:46]} 9. Bb2 {[%emt 0:01:00]} Na6 {[%emt 0:01:26]} 10. a3 {[%emt 0:02:07]} Qe8 {[%emt 0:00:33]} 11. Qc2 {[%emt 0:04:18]} Qh5 {[%emt 0:02:52]} 12. Ne5 {[%emt 0:08:39]} Bxg2 {[%emt 0:01:06]} 13. Kxg2 {[%emt 0:00:13]} Ng4 {[%emt 0:16:03]} 14. Nxg4 {[%emt 0:03:19]} fxg4 {[%emt 0:00:05]} 15. Qe4 {[%emt 0:06:55]} Rac8 {[%emt 0:04:16]} 16. Nd1 {[%emt 0:09:50]} Bf6 {[%emt 0:12:21]} 17. Rb1 {[%emt 0:12:29]} c5 {[%emt 0:13:34]} 18. Ne3 {[%emt 0:05:47]} Qh3+ {[%emt 0:18:43]} 19. Kg1 {[%emt 0:00:16]} h5 {[%emt 0:00:02]} 20. Ng2 {[%emt 0:14:20]} g5 {[%emt 0:03:47]} 21. Qg6+ {[%emt 0:03:08]} Kh8 {[%emt 0:01:08]} 22. d5 {[%emt 0:02:33]} e5 {[%emt 0:01:38]} 23. Bc1 {[%emt 0:01:49]} Nc7 {[%emt 0:05:01]} 24. Qh6+ {[%emt 0:01:50]} Kg8 {[%emt 0:00:02]} 25. Bxg5 {[%emt 0:00:50]} Ne8 {[%emt 0:01:13]} 26. Nh4 {[%emt 0:02:24]} Rf7 {[%emt 0:02:23]} 27. Ng6 {[%emt 0:04:42]} Bg7 {[%emt 0:00:28]} 28. Ne7+ {[%emt 0:01:59]} Rxe7 {[%emt 0:00:19]} 29. Qxb6 {[%emt 0:00:52]} Rf7 {[%emt 0:00:22]} 30. Qb7 {[%emt 0:04:03]} Nd6 {[%emt 0:00:16]} 31. Qa6 {[%emt 0:00:19]} Bf6 {[%emt 0:00:27]} 32. f4 {[%emt 0:02:29]} gxf3 {[%emt 0:02:55]} 33. Rxf3 {[%emt 0:01:36]} Rcf8 {[%emt 0:00:18]} 34. Qxd6 {[%emt 0:00:45]} Bxg5 {[%emt 0:00:35]} 35. Qg6+ {[%emt 0:00:31]} Rg7 {[%emt 0:00:06]} 36. Rxf8+ {[%emt 0:01:36]} Kxf8 {[%emt 0:00:02]} 37. Qd6+ {[%emt 0:00:29]} Kg8 {[%emt 0:00:57]} 38. Qxe5 {[%emt 0:00:24]} h4 {[%emt 0:01:08]} 39. Qe8+ {[%emt 0:00:25]} Kh7 {[%emt 0:00:09]} 40. Qh5+ {[%emt 0:00:21]} Bh6 {[%emt 0:01:00]} 41. Rf1 {[%emt 0:08:19]} Rxg3+ {[%emt 0:04:50]} 1/2-1/2

[Event "106th British-ch Major 2019"]
[Site "Torquay"]
[Date "2019.07.28"]
[Round "2.35"]
[White "Paulden, Tim"]
[Black "Gray, Edward"]
[Result "1/2-1/2"]
[ECO "A45"]
[WhiteElo "1902"]
[BlackElo "1757"]
[Annotator "NA"]
[PlyCount "64"]
[EventDate "2019.07.27"]
[EventType "swiss"]
[EventCountry "GBR"]
[SourceTitle "playchess.com"]
[Source "ChessBase"]
[SourceQuality "1"]
[TimeControl "40/5400+30:1800+30"]

1. d4 {[%emt 0:00:22]} Nf6 {[%emt 0:00:00]} 2. Bf4 {[%emt 0:00:30]} c5 {[%emt 0:00:55]} 3. e3 {[%emt 0:00:45]} g6 {[%emt 0:01:25]} 4. Nd2 {[%emt 0:05:11]} Bg7 {[%emt 0:02:09]} 5. c3 {[%emt 0:03:09]} d6 {[%emt 0:01:34]} 6. Ngf3 {[%emt 0:07:41]} O-O {[%emt 0:02:22]} 7. Be2 {[%emt 0:03:46]} Nc6 {[%emt 0:02:28]} 8. O-O {[%emt 0:04:27]} Re8 {[%emt 0:02:29]} 9. dxc5 {[%emt 0:00:30]} dxc5 {[%emt 0:00:30]} 10. Nc4 {[%emt 0:06:41]} Bf5 {[%emt 0:06:55]} 11. Qb3 {[%emt 0:03:26]} b6 {[%emt 0:03:54]} 12. Nfe5 {[%emt 0:00:30]} Nxe5 {[%emt 0:00:30]} 13. Nxe5 {[%emt 0:00:30]} Be6 {[%emt 0:00:30]} 14. Bc4 {[%emt 0:00:30]} Bxc4 {[%emt 0:00:30]} 15. Qxc4 {[%emt 0:00:30]} Qd5 {[%emt 0:00:30]} 16. Rfd1 {[%emt 0:00:30]} Qxc4 {[%emt 0:00:30]} 17. Nxc4 {[%emt 0:16:31]} Rad8 {[%emt 0:11:04]} 18. Kf1 {[%emt 0:04:24]} Nd5 {[%emt 0:01:37]} 19. Bg3 {[%emt 0:01:34]} b5 {[%emt 0:05:44]} 20. Ne5 {[%emt 0:00:30]} Bxe5 {[%emt 0:00:30]} 21. Bxe5 {[%emt 0:00:30]} f6 {[%emt 0:00:30]} 22. Bg3 {[%emt 0:03:16]} e5 {[%emt 0:00:29]} 23. Ke2 {[%emt 0:00:30]} e4 {[%emt 0:00:30]} 24. a4 {[%emt 0:00:30]} bxa4 {[%emt 0:00:30]} 25. Rxa4 {[%emt 0:12:37]} f5 {[%emt 0:24:40]} 26. Rxa7 {[%emt 0:04:06]} g5 {[%emt 0:01:10]} 27. c4 {[%emt 0:07:37]} Nb4 {[%emt 0:01:20]} 28. Rxd8 {[%emt 0:02:42]} Rxd8 {[%emt 0:00:06]} 29. Be5 {[%emt 0:00:30]} Nd3 {[%emt 0:00:30]} 30. Bc3 {[%emt 0:00:30]} Nc1+ {[%emt 0:00:30]} 31. Ke1 {[%emt 0:03:28]} Nd3+ {[%emt 0:03:10]} 32. Kf1 {[%emt 0:01:36]} h6 {[%emt 0:01:43]} 1/2-1/2

[Event "106th British-ch Major 2019"]
[Site "Torquay"]
[Date "2019.07.29"]
[Round "3.1"]
[White "Clarke, Brandon Gi"]
[Black "Sugden, John N"]
[Result "1-0"]
[ECO "B42"]
[WhiteElo "2433"]
[BlackElo "2068"]
[Annotator "NA"]
[PlyCount "77"]
[EventDate "2019.07.27"]
[EventType "swiss"]
[EventCountry "GBR"]
[SourceTitle "playchess.com"]
[Source "ChessBase"]
[SourceQuality "1"]
[TimeControl "40/5400+30:1800+30"]

1. e4 {[%emt 0:00:00]} c5 {[%emt 0:00:00]} 2. Nf3 {[%emt 0:00:00]} e6 {[%emt 0:00:02]} 3. d4 {[%emt 0:00:00]} cxd4 {[%emt 0:00:10]} 4. Nxd4 {[%emt 0:00:00]} a6 {[%emt 0:00:34]} 5. Bd3 {[%emt 0:00:00]} Nc6 {[%emt 0:00:37]} 6. Nxc6 {[%emt 0:00:11]} dxc6 {[%emt 0:00:27]} 7. Nd2 {[%emt 0:01:47]} e5 {[%emt 0:09:18]} 8. Nc4 {[%emt 0:00:36]} Nf6 {[%emt 0:03:07]} 9. O-O {[%emt 0:01:29]} Bg4 {[%emt 0:07:07]} 10. Qe1 {[%emt 0:01:42]} Nd7 {[%emt 0:10:15]} 11. f4 {[%emt 0:16:50]} exf4 {[%emt 0:03:45]} 12. Bxf4 {[%emt 0:01:18]} Bc5+ {[%emt 0:05:09]} 13. Kh1 {[%emt 0:00:17]} O-O {[%emt 0:01:35]} 14. Qg3 {[%emt 0:16:25]} Bh5 {[%emt 0:01:53]} 15. Nd6 {[%emt 0:07:26]} Bxd6 {[%emt 0:06:52]} 16. Bxd6 {[%emt 0:00:15]} Re8 {[%emt 0:00:10]} 17. e5 {[%emt 0:00:31]} Nf8 {[%emt 0:08:14]} 18. Rf4 {[%emt 0:12:29]} Re6 {[%emt 0:09:21]} 19. Raf1 {[%emt 0:03:26]} Rh6 {[%emt 0:02:33]} 20. Bxf8 {[%emt 0:16:17]} Qxf8 {[%emt 0:09:59]} 21. Bc4 {[%emt 0:00:02]} Qe7 {[%emt 0:03:07]} 22. Bxf7+ {[%emt 0:16:13]} Bxf7 {[%emt 0:00:26]} 23. Rxf7 {[%emt 0:00:02]} Qxf7 {[%emt 0:00:17]} 24. Rxf7 {[%emt 0:00:02]} Kxf7 {[%emt 0:00:11]} 25. Qb3+ {[%emt 0:00:09]} Kf8 {[%emt 0:01:23]} 26. Qxb7 {[%emt 0:00:12]} Rd8 {[%emt 0:03:46]} 27. Qb4+ {[%emt 0:04:09]} Ke8 {[%emt 0:02:06]} 28. h3 {[%emt 0:00:44]} Re6 {[%emt 0:03:37]} 29. Qb7 {[%emt 0:01:26]} Rd5 {[%emt 0:05:22]} 30. Qxg7 {[%emt 0:00:23]} Re7 {[%emt 0:00:28]} 31. Qg8+ {[%emt 0:00:20]} Kd7 {[%emt 0:00:07]} 32. e6+ {[%emt 0:00:27]} Kc7 {[%emt 0:01:52]} 33. Qg3+ {[%emt 0:00:37]} Kb7 {[%emt 0:00:57]} 34. c4 {[%emt 0:00:02]} Rd8 {[%emt 0:00:35]} 35. c5 {[%emt 0:00:40]} Kc8 {[%emt 0:01:08]} 36. Qa3 {[%emt 0:00:42]} Rxe6 {[%emt 0:00:26]} 37. Qxa6+ {[%emt 0:00:04]} Kc7 {[%emt 0:00:31]} 38. Qa7+ {[%emt 0:00:07]} Kc8 {[%emt 0:00:06]} 39. Qxh7 {[%emt 0:00:29]} 1-0